[Event "5th Vera Menchik Memorial 2022"]
[Site "Prag"]
[Date "2022.06.05"]
[Round "6.10"]
[White "Rusnak, Jan"]
[Black "Vybiral, Zdenek"]
[Result "0-1"]
[ECO "B22"]
[WhiteElo "1985"]
[BlackElo "2167"]
[Annotator "TA"]
[PlyCount "68"]
[EventDate "2022.06.05"]
[EventType "tourn"]
[EventCountry "CZE"]
[SourceTitle "playchess.com"]
[Source "ChessBase"]
[SourceQuality "1"]
[TimeControl "720+3"]

{[%evp 10,68,43,12,18,1,12,0,13,-29,-19,-22,-26,-33,-27,-31,-27,-37,-28,-28,-31,-29,-31,-111,-25,-76,-92,-86,-64,-53,-53,-170,-172,-263,-50,-338,-163,-262,-157,-248,-247,-228,-172,-558,-540,-544,-545,-541,-537,-505,-515,-543,-452,-1276,-1222,-1127,-833,-29983,-29984,-29978,-1864]} 1. e4 {[%emt 0:00:03]} c5 {[%emt 0:00:04][%cal Bc7c5,Bc5c4][%mdl 32]} 2. c3 {[%emt 0:00:02]} e6 {[%emt 0:00:04]} 3. d4 {[%emt 0:00:02]} d5 {[%emt 0:00:01]} 4. exd5 {[%emt 0:00:01]} exd5 {[%emt 0:00:01]} 5. Nf3 {[%emt 0:00:01]} a6 {[%emt 0:00:03]} 6. Be3 {[%emt 0:00:03]} c4 {[%emt 0:00:02] B22: Sicilian: 2 c3.} 7. Be2 {[%emt 0:00:02]} Bd6 {[%emt 0:00:04]} 8. O-O {[%emt 0:00:03]} Nf6 {[%emt 0:00:04] [#] The position is equal.} 9. a4 $146 {[%emt 0:00:14]} ({Predecessor:} 9. Ne5 O-O 10. Re1 Qc7 11. Bf4 Nbd7 12. Nxd7 Bxd7 13. Bxd6 Qxd6 14. Nd2 b5 15. Nf3 {½-½ (44) Karahaliou,E (2058)-Yildiz Kadioglu,B (2061) Varna 2002}) 9... Nc6 {[%emt 0:00:21]} 10. b3 {[%emt 0:00:02]} cxb3 {[%emt 0:00:01]} 11. Qxb3 {[%emt 0:00:02]} h6 {[%emt 0:00:06]} 12. h3 {[%emt 0:00:02]} O-O {[%emt 0:00:01]} 13. Bd3 {[%emt 0:00:28]} Re8 {[%emt 0:00:31]} 14. Nbd2 {[%emt 0:00:02]} Na5 {[%emt 0:00:01]} 15. Qc2 {[%emt 0:00:05]} Bd7 {[%emt 0:00:02]} 16. Nb3 {[%emt 0:00:26]} (16. Rfc1 $15) 16... Rc8 {[%emt 0:00:32]} (16... Nc4 $17 17. Bxc4 dxc4) 17. Rfb1 {[%emt 0:00:50]} (17. Nxa5 $11 Qxa5 18. Rfc1) 17... Nc4 $17 {[%emt 0:01:41] Black is more active.} 18. Bxc4 {[%emt 0:00:20]} Rxc4 {[%emt 0:00:07]} 19. Nbd2 {[%emt 0:00:04]} Rc7 {[%emt 0:00:22]} 20. Qb3 {[%emt 0:02:13]} (20. Ne5 $15) 20... Qc8 $1 $19 {[%emt 0:04:52][%cal Od7h3] Hoping for ...Bxh3!} 21. Rc1 {[%emt 0:00:02] [#]} (21. Ne5 {was worth a try.}) 21... b5 $2 {[%emt 0:00:01]} (21... Bxh3 $1 $19 {[%cal Oc7e7][%mdl 512] ...Rce7! is the strong threat.} 22. c4 (22. Qd1 Bg4) 22... dxc4 23. Rxc4 Qg4) 22. a5 $2 {[%emt 0:01:31][%mdl 8192] [#] This costs White the game.} (22. axb5 $15 Bxb5 23. Ne5) 22... Bf5 {[%emt 0:00:16]} (22... Bxh3 $142 $1 {[%cal Oc7e7][%mdl 512] White must now prevent ...Rce7!} 23. Ne1 (23. Qd1 Bg4) 23... Be6) 23. Nf1 {[%emt 0:00:20]} (23. Ne5 $142) 23... Bd3 {[%emt 0:00:26]} ({Black should play} 23... Bxh3 $19 24. Ne5 Be6) 24. Bd2 {[%emt 0:00:02]} (24. Ne5 $17 Bxf1 25. Kxf1) 24... Bc4 {[%emt 0:00:22]} 25. Qb2 {[%emt 0:00:11]} Be2 {[%emt 0:00:38] aiming for ...Bxf3. This bishop pair is nice.} 26. Re1 $2 {[%emt 0:01:50]} (26. Ne5) 26... Bxf3 {[%emt 0:00:14]} 27. Rxe8+ {[%emt 0:00:03]} Nxe8 {[%emt 0:00:04]} 28. gxf3 {[%emt 0:00:02]} Qxh3 {[%emt 0:00:02]} 29. Re1 {[%emt 0:00:18]} Nf6 {[%emt 0:00:06]} 30. Qc1 {[%emt 0:00:10]} Qxf3 {[%emt 0:00:11] And now ...Qg4+ would win.} 31. Bxh6 {[%emt 0:00:13]} (31. Qd1 $142 Qd3 32. f3) 31... Qg4+ {[%emt 0:00:09]} 32. Ng3 {[%emt 0:00:26]} Bxg3 {[%emt 0:00:02]} 33. fxg3 {[%emt 0:00:01]} Qxg3+ {[%emt 0:00:02]} 34. Kf1 {[%emt 0:00:01]} Qh3+ {[%emt 0:00:01] Weighted Error Value: White=0.90/Black=0.49} (34... Rxc3 $142 35. Qxc3 Qxc3 36. Be3 Ng4 37. Re2 Nxe3+ 38. Kf2 Ng4+ 39. Kg2 Qxd4 40. Re8+ Kh7 41. Kf3 f5 42. Ke2 b4 43. Re7 b3 44. Re8 Qf2+ 45. Kd1 Qc2+ 46. Ke1 b2 47. Rh8+ Kxh8 48. Kf1 b1=Q#) 0-1

[Event "5th Vera Menchik Memorial 2022"]
[Site "Prag"]
[Date "2022.06.05"]
[Round "6.11"]
[White "Kulovana, Eva"]
[Black "Vranova, Zdenka"]
[Result "1-0"]
[ECO "C42"]
[WhiteElo "2173"]
[BlackElo "1971"]
[Annotator "TA"]
[PlyCount "93"]
[EventDate "2022.06.05"]
[EventType "tourn"]
[EventCountry "CZE"]
[SourceTitle "playchess.com"]
[Source "ChessBase"]
[SourceQuality "1"]
[TimeControl "720+3"]

{[%evp 10,93,23,29,29,23,36,40,47,38,43,21,30,27,19,0,0,0,27,21,44,38,78,37,55,43,125,121,115,66,130,2,9,7,31,12,14,16,40,14,43,0,0,0,21,-121,20,6,11,10,1066,962,1068,1023,956,576,680,594,670,539,29986,29987,29987,29988,29988,29989,29971,2585,29987,29986,29988,29980,5331,1493,6239,5433,2170,881,921,756,918,885,841,844,981,902]} 1. e4 {[%emt 0:00:03]} e5 {[%emt 0:00:01]} 2. Nf3 {[%emt 0:00:02]} Nf6 {[%emt 0:00:02]} 3. Nxe5 {[%emt 0:00:06]} d6 {[%emt 0:00:02]} 4. Nf3 {[%emt 0:00:02]} Nxe4 {[%emt 0:00:02]} 5. Nc3 {[%emt 0:00:01]} Nf6 {[%emt 0:00:02]} 6. d4 {[%emt 0:00:06]} d5 {[%emt 0:00:01] C42: Petroff Defence: 3 Nxe5 and unusual White 3rd moves.} 7. Bd3 {[%emt 0:00:15]} Be7 {[%emt 0:00:03]} 8. O-O {[%emt 0:00:04]} O-O {[%emt 0:00:03] White is slightly better.} 9. h3 {[%emt 0:00:04]} Nbd7 {[%emt 0:00:03]} 10. Bf4 {[%emt 0:00:24]} c6 {[%emt 0:00:02]} 11. Ne2 {[%emt 0:00:25]} Re8 {[%emt 0:00:08] [#]} 12. b3 $146 {[%emt 0:00:18]} ({Predecessor:} 12. Ne5 Ne4 13. Ng3 Nxg3 14. fxg3 Nf6 15. g4 Bd6 16. g5 Bxe5 17. Bxe5 Ne4 18. Qh5 {1-0 (41) Papargiriou,A (2114)-Dritsoula,E (1837) Aghios Kirykos 2011}) 12... Nf8 {[%emt 0:00:03]} 13. c4 {[%emt 0:00:13]} Be6 {[%emt 0:00:15]} 14. Qc2 {[%emt 0:00:25]} Qc8 {[%emt 0:00:03]} 15. Rac1 {[%emt 0:01:25]} h6 {[%emt 0:00:29]} 16. Bg3 {[%emt 0:00:56] White is more active.} Qd8 {[%emt 0:00:12][%cal Of6e4]} 17. Nf4 {[%emt 0:00:15]} g5 {[%emt 0:00:42]} (17... Bb4 $14) 18. Nxe6 $16 {[%emt 0:00:19]} Nxe6 {[%emt 0:00:02]} 19. Rfd1 {[%emt 0:00:12]} (19. Rce1 $16) 19... Nh5 {[%emt 0:01:22]} (19... Bd6 $14) 20. Qb2 {[%emt 0:01:05]} ({White should try} 20. Bh7+ $16 Kg7 21. Be5+ Bf6 22. Bf5) 20... Nef4 {[%emt 0:00:17]} 21. Bb1 {[%emt 0:00:50] next Bxf4 is good for White.} Bf6 {[%emt 0:01:18]} 22. Re1 {[%emt 0:01:00]} Nxg3 {[%emt 0:00:43]} 23. fxg3 {[%emt 0:00:02]} Nh5 {[%emt 0:00:02]} 24. Qc2 {[%emt 0:00:33] aiming for Qh7+.} Bg7 {[%emt 0:00:10]} 25. Qf2 {[%emt 0:01:01]} Qd6 {[%emt 0:00:18]} 26. Kh2 {[%emt 0:00:51]} a5 {[%emt 0:00:57]} 27. Rf1 {[%emt 0:00:16] [#]} (27. Bd3 $11) 27... Re7 {[%emt 0:00:07]} (27... Re2 $1 $17 {[%cal Re2f2][%mdl 512]} 28. Qxe2 Nxg3) 28. Rce1 {[%emt 0:00:37]} Rae8 {[%emt 0:00:02]} 29. Ne5 $36 {[%emt 0:00:28][%mdl 2048] Threatens to win with Qf5. White is pushing.} Bxe5 $4 {[%emt 0:00:25][%mdl 8192] Black cannot hold the game after this.} (29... Nf6 $11) 30. dxe5 $18 {[%emt 0:00:04]} Qd7 {[%emt 0:00:32]} 31. Qc2 {[%emt 0:00:12] Intending Qh7+ and mate.} f5 {[%emt 0:00:34]} 32. Rxf5 {[%emt 0:00:14]} dxc4 {[%emt 0:00:24]} 33. bxc4 {[%emt 0:00:02]} Rd8 {[%emt 0:00:37]} 34. Rf2 {[%emt 0:00:07] And now Qg6+ would win.} Qd4 {[%emt 0:01:22]} 35. Qg6+ {[%emt 0:00:21]} Rg7 {[%emt 0:00:28]} 36. Qe6+ {[%emt 0:00:01]} Kh8 {[%emt 0:00:01]} 37. Qxh6+ {[%emt 0:00:03]} Kg8 {[%emt 0:00:04]} 38. Rf3 {[%emt 0:00:10]} (38. Qe6+ $142 Kh8 39. Ref1 Nf4 40. gxf4 g4 41. hxg4 Qd7 42. Qh6+ Kg8 43. Bf5 Qxf5 44. gxf5) 38... Nxg3 {[%emt 0:01:53]} 39. Rxg3 {[%emt 0:00:03]} Qf4 {[%emt 0:00:01]} 40. Ree3 {[%emt 0:00:06]} Re8 {[%emt 0:00:07]} 41. Qf6 {[%emt 0:00:03] Black must now prevent Bf5. White is clearly winning.} Rf8 {[%emt 0:00:07]} 42. Qe6+ {[%emt 0:00:03]} Qf7 {[%emt 0:00:03]} 43. Qxf7+ {[%emt 0:00:25]} Rfxf7 {[%emt 0:00:03]} 44. Bc2 {[%emt 0:00:00]} Re7 {[%emt 0:00:03]} 45. Bb3 {[%emt 0:00:06]} c5 {[%emt 0:00:03]} 46. Ba4 {[%emt 0:00:00]} b6 47. Bc6 {[%emt 0:00:06] Weighted Error Value: White=0.43/Black=0.71} 1-0

[Event "5th Vera Menchik Memorial 2022"]
[Site "Prag"]
[Date "2022.06.05"]
[Round "6.12"]
[White "Minbayev, Bolatbek"]
[Black "Vrana, Frantisek"]
[Result "1-0"]
[ECO "B01"]
[WhiteElo "2078"]
[BlackElo "2213"]
[Annotator "TA"]
[PlyCount "89"]
[EventDate "2022.06.05"]
[EventType "tourn"]
[EventCountry "CZE"]
[SourceTitle "playchess.com"]
[Source "ChessBase"]
[SourceQuality "1"]
[TimeControl "720+3"]

{[%evp 18,89,36,27,29,24,26,16,18,0,6,3,0,0,14,5,6,2,2,7,41,0,26,34,40,36,78,37,35,-60,40,25,20,29,30,20,43,35,45,0,97,45,29,35,65,45,49,40,31,27,60,61,56,17,23,13,78,73,89,28,52,44,47,0,0,0,27,-75,-75,-1331,-1287,-1041,29984,29984]} 1. e4 {[%emt 0:00:03]} d5 {[%emt 0:00:06]} 2. exd5 {[%emt 0:00:06]} Qxd5 {[%emt 0:00:02]} 3. Nc3 {[%emt 0:00:02]} Qa5 {[%emt 0:00:01]} 4. d4 {[%emt 0:00:22]} Nf6 {[%emt 0:00:13]} 5. Nf3 {[%emt 0:00:12]} Bf5 {[%emt 0:00:03]} 6. Bd2 {[%emt 0:01:09]} c6 {[%emt 0:00:02]} 7. Bc4 {[%emt 0:00:22]} e6 {[%emt 0:00:26]} 8. O-O {[%emt 0:00:10]} Nbd7 {[%emt 0:00:08]} 9. h3 {[%emt 0:00:02]} Bb4 {[%emt 0:00:12]} 10. Re1 {[%emt 0:00:34]} O-O {[%emt 0:00:17] B01: Scandinavian Defence.} 11. a3 {[%emt 0:01:15]} Bxc3 {[%emt 0:00:04]} 12. Bxc3 {[%emt 0:00:01]} Qc7 {[%emt 0:00:08] The position is equal.} 13. Qe2 {[%emt 0:00:52]} Rfe8 {[%emt 0:00:14]} 14. Bd3 {[%emt 0:01:07]} Bxd3 {[%emt 0:00:13]} 15. Qxd3 {[%emt 0:00:01]} Rad8 {[%emt 0:00:18] [#]} 16. Rad1 $146 {[%emt 0:00:34]} ({Predecessor:} 16. Qe2 h6 17. Ne5 Nxe5 18. Qxe5 Qxe5 19. dxe5 Nd5 20. Bd4 Nb6 21. Bxb6 axb6 {½-½ (42) Sakamoto,R (1758)-Hoshino,K (1656) Sao Paulo 2013}) 16... Nc5 {[%emt 0:00:52]} 17. Qc4 {[%emt 0:01:19]} Nce4 {[%emt 0:00:35]} 18. Bd2 {[%emt 0:00:47]} Nd6 {[%emt 0:00:34] Pair of Knights!} 19. Qb3 {[%emt 0:00:52]} Nf5 {[%emt 0:00:25]} 20. Bg5 {[%emt 0:00:06]} Qb6 {[%emt 0:00:43]} 21. Qd3 {[%emt 0:01:38]} Rd5 {[%emt 0:01:09][%cal Of5d4]} 22. Bxf6 {[%emt 0:00:10]} gxf6 {[%emt 0:00:02]} 23. Re4 {[%emt 0:00:16]} (23. c4 $14 Rd7 24. Qc3) 23... Ne7 {[%emt 0:00:32]} (23... Qxb2 $15 24. Ree1 Ra5) 24. Rg4+ {[%emt 0:00:16]} Ng6 {[%emt 0:00:18]} 25. c4 {[%emt 0:00:05]} Rh5 {[%emt 0:00:37]} 26. b4 {[%emt 0:00:13]} Kh8 {[%emt 0:00:14]} 27. Qc3 {[%emt 0:00:06][%cal Od4d5]} Qd8 {[%emt 0:00:21] Inhibits d5.} 28. Nd2 {[%emt 0:00:14][%cal Bf3d2,Bd2e4,Be4c5][%mdl 32]} Qe7 {[%emt 0:00:13]} (28... f5 $11 29. Rg3 f6) 29. Rg3 {[%emt 0:00:02]} (29. Ne4 $16) 29... Kg8 {[%emt 0:00:11]} 30. Re1 {[%emt 0:00:09]} Qd8 {[%emt 0:00:10]} 31. Ne4 {[%emt 0:00:01][%cal Od4d5] Hoping for d5! White is more active.} f5 {[%emt 0:00:05]} 32. Nc5 $36 {[%emt 0:00:01][%mdl 2048] Black is under pressure.} b6 {[%emt 0:00:07]} 33. Nd3 {[%emt 0:00:01]} Rh4 {[%emt 0:00:08]} 34. f4 {[%emt 0:00:15]} Kf8 {[%emt 0:00:11]} 35. Rf3 {[%emt 0:00:05]} (35. d5 {is interesting.} cxd5 36. cxd5 exd5 37. Rxe8+ Kxe8 38. Rg5) 35... Qc7 {[%emt 0:00:12]} 36. Ne5 {[%emt 0:00:01]} Nxe5 {[%emt 0:00:25]} (36... Rd8 $11 {keeps the balance.}) 37. Rxe5 $16 {[%emt 0:00:03]} Rd8 {[%emt 0:00:17] [#]} 38. Qe1 {[%emt 0:00:04]} (38. a4 $1 $16) 38... Rh6 {[%emt 0:00:04]} 39. Rd3 {[%emt 0:00:08]} Rg6 {[%emt 0:00:10]} 40. d5 {[%emt 0:00:03]} (40. Qd2 $14) 40... cxd5 $11 {[%emt 0:00:07]} 41. cxd5 {[%emt 0:00:01]} Qc4 {[%emt 0:00:08]} 42. Rd1 {[%emt 0:00:09]} (42. Qd2 $11) 42... Qxf4 $17 {[%emt 0:00:43]} 43. dxe6 $2 {[%emt 0:00:01][%mdl 8192]} (43. Qe2 $17) 43... Rxd1 $19 {[%emt 0:00:03]} 44. e7+ {[%emt 0:00:00]} Ke8 $4 {[%emt 0:00:03][%mdl 8192] [#]} (44... Kg7 $19 45. Qxd1 Qxe5) 45. Qxd1 {[%emt 0:00:20] Weighted Error Value: White=0.47/Black=0.39} 1-0

[Event "5th Vera Menchik Memorial 2022"]
[Site "Prag"]
[Date "2022.06.05"]
[Round "6.13"]
[White "Pecka, Jan"]
[Black "Haman, Jakub"]
[Result "1/2-1/2"]
[ECO "B51"]
[WhiteElo "1863"]
[BlackElo "2229"]
[Annotator "TA"]
[PlyCount "121"]
[EventDate "2022.06.05"]
[EventType "tourn"]
[EventCountry "CZE"]
[SourceTitle "playchess.com"]
[Source "ChessBase"]
[SourceQuality "1"]
[TimeControl "720+3"]

{[%evp 13,121,28,41,39,89,25,65,24,56,34,103,104,104,93,103,84,135,112,113,109,112,125,116,98,98,98,97,86,115,92,87,85,86,85,109,57,62,60,76,52,52,52,56,55,52,29,43,43,84,84,101,101,101,68,68,68,68,56,56,56,56,56,68,68,68,68,68,68,68,68,68,68,68,68,68,68,68,15,15,15,15,-1,0,0,0,0,0,0,0,0,0,0,0,-34,0,0,0,0,0,0,0,0,0,0,0,0,0,0,0,0]} 1. e4 {[%emt 0:00:01]} c5 {[%emt 0:00:06]} 2. Nf3 {[%emt 0:00:01]} d6 {[%emt 0:00:01]} 3. Bb5+ {[%emt 0:00:10]} Nc6 {[%emt 0:00:42]} 4. O-O {[%emt 0:00:03]} Bd7 {[%emt 0:00:15]} 5. c3 {[%emt 0:00:03]} Nf6 {[%emt 0:00:09]} 6. Re1 {[%emt 0:00:01]} a6 {[%emt 0:00:22]} 7. Bf1 {[%emt 0:00:11]} e5 {[%emt 0:00:18]} 8. d4 {[%emt 0:00:02] B51: Sicilian: Moscow Variation (3 Bb5+) without 3...Bd7.} Be7 {[%emt 0:00:04]} (8... cxd4 $14 9. cxd4 Rc8) 9. a4 {[%emt 0:00:24] [#]} ({White should try} 9. d5 $16) 9... b6 $146 {[%emt 0:00:51]} ({Predecessor:} 9... cxd4 10. cxd4 Bg4 11. d5 Nd4 12. Be3 Nxf3+ 13. gxf3 Bh5 14. Qb3 O-O 15. Bh3 Nd7 16. Qxb7 {1-0 (49) Musyuk,L (2278)-Rodrigue Lemieux,S (2263) Corum 2019}) 10. Na3 {[%emt 0:00:04] White is slightly better.} O-O {[%emt 0:00:28]} 11. dxe5 {[%emt 0:01:23]} (11. d5 $5 {[%cal Rd5c6]}) 11... dxe5 {[%emt 0:00:04]} (11... Nxe5 $14 12. Nc4 Nxf3+ 13. Qxf3 b5 14. axb5 axb5 15. Rxa8 Qxa8) 12. Nc4 $16 {[%emt 0:00:13]} Qc7 {[%emt 0:00:18] [#]} 13. Nfxe5 $1 {[%emt 0:02:13][%mdl 512]} Nxe5 {[%emt 0:01:02]} 14. Bf4 {[%emt 0:00:01]} Nfg4 {[%emt 0:02:06]} ({Black should play} 14... Bxa4 15. Bxe5 (15. Rxa4 Rfd8 $16) (15. Qxa4 Nf3+ 16. gxf3 Qxf4 $14) 15... Qxe5) 15. Nxe5 {[%emt 0:00:19][%mdl 64] Remove Defender} Nxe5 {[%emt 0:00:06]} 16. Bxe5 {[%emt 0:00:03][%mdl 64] Remove Defender} Qxe5 {[%emt 0:00:31]} 17. Qxd7 {[%emt 0:00:02]} Rfd8 {[%emt 0:00:46]} 18. Qf5 {[%emt 0:00:38]} Qxf5 {[%emt 0:00:06]} 19. exf5 {[%emt 0:00:01]} Kf8 {[%emt 0:00:12]} 20. Rad1 {[%emt 0:00:03]} a5 {[%emt 0:00:15]} 21. Bc4 {[%emt 0:00:46] White is more active.} Rxd1 {[%emt 0:00:06]} 22. Rxd1 {[%emt 0:00:01][%mdl 4096] Endgame KRB-KRB} Rd8 {[%emt 0:00:00]} 23. Bd5 {[%emt 0:00:40]} Bf6 {[%emt 0:00:17]} 24. Rd2 {[%emt 0:00:02]} (24. g3 $16) 24... Bg5 $14 {[%emt 0:00:09]} 25. Rd3 {[%emt 0:00:11]} Bc1 {[%emt 0:00:39]} 26. b3 {[%emt 0:00:04]} Bb2 {[%emt 0:00:30][%cal Ob2c3]} 27. c4 {[%emt 0:05:44]} Bd4 {[%emt 0:00:03]} 28. Kf1 {[%emt 0:00:00]} Re8 {[%emt 0:00:03]} 29. f3 {[%emt 0:00:00]} Re5 {[%emt 0:00:45]} 30. Be4 {[%emt 0:00:00]} f6 {[%emt 0:00:17]} 31. Rd2 {[%emt 0:00:00]} h6 {[%emt 0:00:06]} 32. Re2 {[%emt 0:00:00]} Re7 {[%emt 0:00:18]} 33. Bc2 {[%emt 0:00:00]} Rxe2 {[%emt 0:00:02]} 34. Kxe2 {[%emt 0:00:00] KB-KB} Ke7 {[%emt 0:00:04]} 35. Kd3 {[%emt 0:00:00]} Kd6 {[%emt 0:00:02]} 36. Ke4 {[%emt 0:00:00]} Bg1 {[%emt 0:00:03]} 37. h3 {[%emt 0:00:00]} Bh2 {[%emt 0:00:01]} 38. f4 {[%emt 0:00:00]} Bg3 {[%emt 0:00:10]} 39. Kf3 {[%emt 0:00:00]} Be1 {[%emt 0:00:01]} 40. Be4 {[%emt 0:00:00]} Bd2 {[%emt 0:00:03]} 41. Bd5 {[%emt 0:00:00]} Bc1 {[%emt 0:00:03]} 42. Kg4 {[%emt 0:00:00]} Ke7 {[%emt 0:00:04]} 43. g3 {[%emt 0:00:00]} Bd2 {[%emt 0:00:01]} 44. Kh5 {[%emt 0:00:00]} Be1 {[%emt 0:00:09]} 45. g4 {[%emt 0:00:00]} (45. Kh4 $1 $14) 45... Bd2 $11 {[%emt 0:00:03]} 46. Kg6 {[%emt 0:00:00]} Kf8 {[%emt 0:00:03]} 47. g5 {[%emt 0:00:00]} fxg5 {[%emt 0:00:12]} 48. f6 {[%emt 0:00:00]} gxf6 {[%emt 0:00:02]} 49. Kxf6 {[%emt 0:00:00]} Bxf4 {[%emt 0:00:30]} 50. Bf7 {[%emt 0:00:01]} Be3 {[%emt 0:00:14]} 51. Bh5 {[%emt 0:00:08]} Bd4+ {[%emt 0:00:04]} 52. Ke6 {[%emt 0:00:21]} Kg7 {[%emt 0:00:05]} 53. Kd6 {[%emt 0:00:02]} Bc3 {[%emt 0:00:09]} 54. Ke6 {[%emt 0:00:06] The position is equal.} Bb4 {[%emt 0:00:05]} 55. Be8 {[%emt 0:00:07]} Kf8 {[%emt 0:00:05]} 56. Bh5 {[%emt 0:00:01]} Kg7 {[%emt 0:00:01]} 57. Be8 {[%emt 0:00:01]} Bc3 {[%emt 0:00:02]} 58. Bh5 {[%emt 0:00:02]} Be1 {[%emt 0:00:09]} 59. Be8 {[%emt 0:00:03]} Bg3 {[%emt 0:00:05]} 60. Bh5 {[%emt 0:00:02]} Bf2 {[%emt 0:00:01]} 61. Ke5 {[%emt 0:00:00] Weighted Error Value: White=0.12 (very precise) /Black=0.09 (flawless)} 1/2-1/2